bitfinex-derivatives/quotes_BTCF0:USTF0_20250814
["timestamp","ask_amount","ask_price","bid_price","bid_amount"]
[1755178088319,0.40608,118350.0,118340.0,0.002]
[1755178088320,0.4905364,118350.0,118340.0,0.002]
[1755178088519,1.13804651,118350.0,118340.0,0.99672]
[1755178088724,1.13804651,118350.0,118340.0,0.99972]
[1755178088921,1.13884651,118350.0,118340.0,0.9996]
[1755178089129,1.30784651,118350.0,118340.0,0.003]
[1755178089720,1.22339011,118350.0,118310.0,0.19361]
[1755178089930,0.04528,118310.0,118300.0,1.71802406]
[1755178090127,0.646585,118310.0,118300.0,2.37634746]
[1755178090326,0.721315,118310.0,118300.0,1.09818956]
[1755178090533,1.13807511,118310.0,118300.0,1.09818956]
[1755178090931,0.721315,118310.0,118300.0,1.09818956]
[1755178091238,0.646585,118310.0,118300.0,1.29179956]
[1755178091732,0.646585,118310.0,118300.0,1.29279956]
[1755178092434,0.646585,118310.0,118300.0,1.29379956]
[1755178092727,0.3608,118310.0,118300.0,1.33956956]
[1755178093126,0.3608,118310.0,118300.0,1.33856956]
[1755178093325,0.42096,118310.0,118300.0,1.33856956]
[1755178093635,0.5621,118340.0,118330.0,0.1529107]
[1755178093820,0.5621,118340.0,118330.0,1.2967107]
[1755178094133,0.48081,118350.0,118340.0,0.1866536]
[1755178094331,0.48081,118350.0,118340.0,0.3008636]
[1755178094332,0.40608,118350.0,118340.0,0.3008636]
[1755178094518,0.3608,118350.0,118340.0,0.3008636]
[1755178094722,0.37971543,118360.0,118350.0,0.3008569]
[1755178094922,0.37971543,118360.0,118350.0,1.2914569]
[1755178095132,0.01891543,118360.0,118350.0,1.6522569]
[1755178095323,0.01891543,118360.0,118350.0,2.06981701]
[1755178095523,0.01891543,118360.0,118350.0,2.06781701]
[1755178095723,0.01891543,118360.0,118350.0,1.6510569]
[1755178095922,0.01891543,118360.0,118350.0,1.2902569]
[1755178096122,0.01891543,118360.0,118350.0,1.6510569]
[1755178096329,0.3608,118370.0,118350.0,1.8219666]
[1755178096330,0.41993,118370.0,118350.0,1.8219666]
[1755178096534,0.41993,118370.0,118360.0,0.3008497]
[1755178096727,0.05913,118370.0,118360.0,0.3008497]
[1755178097025,0.05913,118370.0,118360.0,0.2988497]
[1755178097737,0.41993,118370.0,118360.0,0.2998497]
[1755178098035,0.72899108,118370.0,118360.0,1.2492397]
[1755178098232,0.72899108,118370.0,118360.0,0.1856397]
[1755178098233,0.80372108,118370.0,118360.0,0.1856397]
[1755178098427,1.22048119,118370.0,118360.0,1.1806797]
[1755178098628,0.80372108,118370.0,118360.0,1.1806797]
[1755178098828,0.7804026,118370.0,118360.0,1.1806797]
[1755178099028,0.41993,118370.0,118360.0,1.2948897]
[1755178099229,0.05913,118370.0,118360.0,1.2968897]
[1755178099729,0.05913,118370.0,118360.0,1.6576897]
[1755178100531,0.00214,118370.0,118360.0,2.24341781]
[1755178100832,0.00214,118370.0,118360.0,1.8266577]
[1755178101131,0.00214,118370.0,118360.0,2.07444981]
[1755178101535,0.00214,118370.0,118360.0,1.6576897]
[1755178101728,0.0001,118380.0,118370.0,0.2529326]
[1755178101935,0.0001,118380.0,118370.0,0.6137326]
[1755178102135,0.0001,118380.0,118370.0,0.7826846]
[1755178102534,0.0001,118380.0,118370.0,0.4218846]
[1755178102737,0.0001,118380.0,118370.0,0.2529326]
[1755178103133,0.0001,118380.0,118370.0,0.2539326]
[1755178103332,0.0001,118380.0,118370.0,0.6167326]
[1755178103732,0.04538,118380.0,118370.0,0.6167326]
[1755178104438,0.55768,118380.0,118370.0,0.2589326]
[1755178104736,0.6421155,118380.0,118370.0,0.1904926]
[1755178105034,1.13222561,118380.0,118370.0,0.006]
[1755178105239,1.15535671,118380.0,118370.0,0.006]
[1755178105740,0.7146655,118380.0,118370.0,0.2602926]
[1755178105938,1.13142561,118380.0,118370.0,0.007]
[1755178106132,1.13222561,118380.0,118370.0,0.007]
[1755178106439,1.15538568,118380.0,118370.0,1.00044]
[1755178106645,0.1696895,118370.0,118350.0,0.2533621]
[1755178106836,1.13452991,118360.0,118350.0,0.2533621]
[1755178107036,1.13452991,118360.0,118350.0,1.2466821]
[1755178107432,1.13532991,118360.0,118340.0,0.2650472]
[1755178107642,0.63332,118350.0,118340.0,0.2533908]
[1755178107843,0.40927,118350.0,118340.0,1.4154408]
[1755178108142,0.40927,118360.0,118350.0,0.2533069]
[1755178108534,0.58485,118370.0,118360.0,0.0844498]
[1755178108535,0.3608,118370.0,118360.0,0.0844498]
[1755178108738,0.40927,118370.0,118360.0,1.2463398]
[1755178109539,0.04847,118370.0,118360.0,1.2463398]
[1755178109731,0.04857,118380.0,118360.0,2.19391311]
[1755178110039,0.13935872,118380.0,118370.0,0.2532926]
[1755178110233,0.13935872,118380.0,118370.0,0.26586562]
[1755178110641,0.72420872,118380.0,118370.0,0.09701562]
[1755178110837,1.39515633,118380.0,118370.0,0.01257425]
[1755178111030,0.27252,118370.0,118360.0,1.2469405]
[1755178111344,0.0844498,118360.0,118350.0,1.1614676]
[1755178111540,1.15773863,118360.0,118350.0,1.1614676]
[1755178112441,0.74097852,118360.0,118350.0,1.1614676]
[1755178112743,0.65652872,118360.0,118350.0,1.1614676]
[1755178112944,0.74097832,118360.0,118350.0,1.1634676]
[1755178113446,0.74177832,118360.0,118350.0,0.99548]
[1755178113646,0.74177832,118360.0,118350.0,1.0799367]
[1755178113841,0.74097832,118360.0,118350.0,1.0799367]
[1755178114154,1.15773843,118360.0,118350.0,0.99548]
[1755178114546,1.15773843,118360.0,118350.0,1.0799371]
[1755178114948,0.74097832,118360.0,118350.0,1.0799371]
[1755178115148,1.15773843,118360.0,118350.0,1.0799371]
[1755178115647,1.15773843,118360.0,118350.0,1.0779371]
[1755178116042,1.15773843,118360.0,118350.0,1.0769371]
[1755178116440,0.74097832,118360.0,118350.0,1.1730571]
[1755178116639,0.66842832,118360.0,118350.0,1.2457871]
[1755178116847,0.58397872,118360.0,118350.0,1.2457871]
[1755178117143,0.43247872,118360.0,118350.0,1.2457871]
[1755178118347,0.74097912,118360.0,118350.0,1.1730571]
[1755178118554,1.15773923,118360.0,118350.0,0.99248]
[1755178118853,0.74097912,118360.0,118350.0,0.99448]
[1755178119346,0.74097912,118360.0,118350.0,1.0789377]
[1755178120147,0.74097912,118360.0,118350.0,1.0779377]
[1755178120547,0.74097912,118360.0,118350.0,0.99348]
[1755178120744,0.74177912,118360.0,118330.0,0.0844717]
[1755178120943,0.3569919,118330.0,118320.0,0.01722722]
[1755178121150,1.13455201,118330.0,118320.0,0.10170632]
[1755178121356,0.74111769,118330.0,118320.0,0.10170632]
[1755178121659,1.16092451,118330.0,118320.0,0.01722722]
[1755178121855,0.7441644,118330.0,118320.0,0.10170632]
[1755178122153,1.16092451,118330.0,118320.0,0.10170632]
[1755178122655,0.74111769,118330.0,118320.0,0.10270632]
[1755178122845,1.1578778,118330.0,118320.0,0.10370632]
[1755178123148,1.1578778,118330.0,118320.0,0.01922722]
[1755178123354,0.74111769,118330.0,118320.0,0.10370632]
[1755178123550,1.1578778,118330.0,118320.0,0.10370632]
[1755178123750,1.1578778,118330.0,118320.0,0.01922722]
[1755178124052,1.1578778,118330.0,118320.0,0.01822722]
[1755178124254,1.16084049,118330.0,118320.0,0.01822722]
[1755178124448,0.74408038,118330.0,118320.0,0.10270632]
[1755178124652,0.7177919,118330.0,118320.0,0.19982632]
[1755178124843,0.40927,118330.0,118320.0,0.27255632]
[1755178125045,0.445272,118330.0,118320.0,0.28713632]
[1755178125441,0.40927,118330.0,118320.0,0.27335632]
[1755178125654,0.3608,118330.0,118320.0,0.28693632]
[1755178126455,0.3608,118330.0,118320.0,0.28613632]
[1755178126661,0.3608,118330.0,118320.0,0.28713632]
[1755178127151,0.493742,118330.0,118320.0,0.27355632]
[1755178127353,0.717792,118330.0,118320.0,0.20082632]
[1755178127748,0.717792,118330.0,118320.0,0.10370632]
[1755178127948,1.13455211,118330.0,118320.0,0.002]
[1755178128150,1.157885,118330.0,118320.0,0.002]
[1755178128354,1.13455211,118330.0,118320.0,0.002]
[1755178128654,1.15859696,118330.0,118320.0,0.002]
[1755178128858,0.3570062,118310.0,118300.0,0.10190866]
[1755178129154,1.49536631,118310.0,118300.0,1.00693746]
[1755178129452,1.49536631,118310.0,118300.0,1.00689746]
[1755178129656,1.49536631,118310.0,118300.0,1.09139076]
[1755178130154,1.0786062,118310.0,118300.0,1.18851076]
[1755178130457,1.0060562,118310.0,118300.0,1.26124076]
[1755178130644,1.0786062,118310.0,118300.0,1.00689746]
[1755178130852,1.49536631,118310.0,118300.0,1.00689746]
[1755178131249,1.49536631,118310.0,118300.0,1.09139076]
[1755178131454,1.0786062,118310.0,118300.0,1.09139076]
[1755178131762,1.0786062,118310.0,118300.0,1.26324076]
[1755178131950,0.77107,118310.0,118300.0,1.26324076]
[1755178132662,0.3608,118310.0,118300.0,1.27962076]
[1755178133056,0.3608,118310.0,118300.0,1.27762076]
[1755178133261,0.001,118310.0,118300.0,1.94785627]
[1755178133461,0.001,118310.0,118300.0,2.30865627]
[1755178133663,0.001,118310.0,118300.0,1.89189616]
[1755178133864,0.001,118310.0,118300.0,2.30865627]
[1755178134164,0.3608,118330.0,118310.0,0.4364142]
[1755178134360,0.3608,118340.0,118330.0,0.3282938]
[1755178134557,0.40827,118340.0,118330.0,0.3608238]
[1755178135055,0.56643,118340.0,118330.0,0.3608238]
[1755178135553,0.56643,118340.0,118330.0,0.3628238]
[1755178135756,1.13934491,118340.0,118330.0,0.002]
[1755178135959,0.3609991,118320.0,118310.0,1.0726862]
[1755178136265,1.0825991,118320.0,118310.0,1.0726862]
[1755178137666,1.0825991,118320.0,118310.0,1.1072162]
[1755178137667,0.99812,118320.0,118310.0,1.1072162]
[1755178137862,0.76907,118320.0,118310.0,1.1831062]
[1755178138061,0.77007,118320.0,118310.0,1.1831062]
[1755178138362,0.7226,118320.0,118310.0,1.1986862]
[1755178138867,0.001,118320.0,118310.0,1.97624631]
[1755178139167,0.001,118320.0,118310.0,2.34608631]
[1755178139366,0.001,118320.0,118310.0,2.34528631]
[1755178139567,0.4462791,118320.0,118310.0,1.1980062]
[1755178140064,0.4937491,118320.0,118310.0,1.1980062]
[1755178140264,0.001,118320.0,118310.0,1.98380631]
[1755178140565,0.40827,118340.0,118330.0,0.1938919]
[1755178140762,0.4927348,118340.0,118330.0,1.1957519]
[1755178140972,0.4927348,118340.0,118330.0,1.1811719]
[1755178141161,0.6508948,118340.0,118330.0,1.1811719]
[1755178141360,0.7217848,118340.0,118330.0,1.1062819]
[1755178141761,0.7247848,118340.0,118330.0,1.1062819]
[1755178141966,0.7247848,118340.0,118330.0,1.0717519]
[1755178142362,0.7247848,118340.0,118330.0,0.98728]
[1755178142575,0.7247848,118340.0,118330.0,1.0717519]
[1755178142866,0.7257848,118340.0,118330.0,0.99981536]
[1755178143063,0.7257848,118340.0,118330.0,1.08428726]
[1755178143269,0.7227848,118340.0,118330.0,0.99981536]
[1755178143463,0.7237848,118340.0,118330.0,1.08428726]
[1755178143670,0.7227848,118340.0,118330.0,1.08528726]
[1755178144465,0.7235848,118340.0,118330.0,1.00081536]
[1755178144770,1.14107317,118340.0,118330.0,1.00081536]
[1755178144960,1.14107266,118340.0,118330.0,1.00081536]
[1755178145469,1.14107266,118340.0,118330.0,1.08528726]
[1755178145470,1.14027266,118340.0,118330.0,1.08528726]
[1755178145870,0.7227848,118340.0,118330.0,1.08528726]
[1755178146069,1.14027266,118340.0,118330.0,1.08528726]
[1755178146671,1.21544296,118340.0,118330.0,1.00081536]
[1755178146862,1.21544296,118340.0,118330.0,1.08528726]
[1755178147262,0.7227848,118340.0,118330.0,1.11818726]
[1755178147470,1.21544296,118340.0,118330.0,1.08528726]
[1755178147860,1.21544296,118340.0,118330.0,0.99921536]
[1755178148063,1.21544296,118340.0,118330.0,1.08368726]
[1755178148566,1.28304296,118340.0,118330.0,1.08368726]
[1755178149564,1.45205096,118340.0,118330.0,0.01353536]
[1755178149772,1.28304296,118340.0,118330.0,0.01353536]
[1755178149963,1.45205096,118340.0,118330.0,0.01353536]
[1755178150163,0.3609919,118330.0,118320.0,0.98512]
[1755178150372,1.21445006,118330.0,118320.0,0.98512]
[1755178150673,1.21445006,118330.0,118320.0,1.0695991]
[1755178150869,1.21445006,118330.0,118320.0,0.98512]
[1755178151273,1.21445006,118330.0,118320.0,1.0695991]
[1755178151868,1.21445006,118330.0,118320.0,0.98512]
[1755178152170,1.21445006,118330.0,118320.0,1.0695991]
[1755178152370,1.21545006,118330.0,118320.0,0.98512]
[1755178152567,1.21545006,118330.0,118320.0,1.0695991]
[1755178152962,1.21645006,118330.0,118320.0,1.0695991]
[1755178153473,0.6529019,118330.0,118320.0,1.1773891]
[1755178153673,0.41027,118330.0,118320.0,1.2054991]
[1755178153861,0.3628,118330.0,118320.0,1.2054991]
[1755178154065,0.3628,118330.0,118320.0,1.69815726]
[1755178154259,0.3628,118330.0,118320.0,1.69895726]
[1755178154971,0.40827,118330.0,118320.0,1.2074991]
[1755178155166,0.40827,118330.0,118320.0,1.2082991]
[1755178155561,0.3608,118330.0,118320.0,1.2102991]
[1755178155865,0.3608,118330.0,118320.0,1.2094991]
[1755178155866,0.40827,118330.0,118320.0,1.2094991]
[1755178156266,0.4927419,118330.0,118320.0,1.2094991]
[1755178156471,0.40827,118330.0,118320.0,1.2084991]
[1755178156662,0.40927,118330.0,118320.0,1.2124991]
[1755178157065,0.3618,118330.0,118320.0,1.2124991]
[1755178157366,0.4284,118340.0,118320.0,1.2084991]
[1755178157573,0.001,118330.0,118320.0,1.95658986]
[1755178157760,0.001,118330.0,118320.0,2.12341386]
[1755178157967,0.001,118330.0,118320.0,2.12541386]
[1755178158269,0.0676,118340.0,118330.0,0.2203719]
[1755178158467,0.0676,118340.0,118330.0,0.71303006]
[1755178158666,0.0676,118340.0,118330.0,0.88283806]
[1755178159368,0.00659,118340.0,118330.0,0.88283806]
[1755178159564,0.41995,118350.0,118340.0,0.06921]
[1755178159772,0.01848422,118370.0,118360.0,0.1536605]
[1755178160072,0.3608,118410.0,118400.0,0.084422]
[1755178160274,0.43153962,118410.0,118400.0,1.60968016]
[1755178160479,0.43564153,118410.0,118400.0,1.60968016]
[1755178160672,0.38817153,118410.0,118400.0,1.60968016]
[1755178161274,0.43564153,118410.0,118400.0,1.117022]
[1755178161668,0.43664153,118410.0,118400.0,1.120022]
[1755178161872,0.59480153,118410.0,118400.0,1.119462]
[1755178162065,0.59480153,118410.0,118400.0,0.15410114]
[1755178162066,1.24276449,118410.0,118400.0,0.15410114]
[1755178162276,1.15834969,118410.0,118400.0,1.123342]
[1755178162476,0.66569153,118410.0,118400.0,1.123342]
[1755178162680,0.66569153,118410.0,118400.0,1.122342]
[1755178162881,0.75010633,118410.0,118400.0,1.122342]
[1755178163270,1.24276449,118410.0,118400.0,1.071422]
[1755178163471,0.75010633,118410.0,118400.0,1.071422]
[1755178163671,0.59480153,118410.0,118400.0,1.071422]
[1755178163970,0.52005633,118410.0,118400.0,1.119342]
[1755178164169,0.52005633,118410.0,118400.0,1.118342]
[1755178164370,1.22806449,118410.0,118400.0,0.088422]
[1755178164579,1.22806449,118410.0,118400.0,0.98544]
[1755178164977,0.0844362,118380.0,118370.0,0.1688812]
[1755178165282,1.20144436,118380.0,118370.0,1.26039093]
[1755178165581,0.7087862,118380.0,118370.0,1.31031093]
[1755178165974,0.6365962,118380.0,118370.0,1.31031093]
[1755178166481,1.20224436,118380.0,118370.0,0.02594853]
[1755178166691,0.1334576,118350.0,118340.0,0.3877656]
[1755178166979,1.20146576,118350.0,118340.0,1.21226802]
[1755178167178,1.20146576,118350.0,118340.0,0.99342602]
[1755178167370,1.20226576,118350.0,118340.0,0.99342602]
[1755178167574,1.20146576,118350.0,118340.0,0.99342602]
[1755178167782,1.20226576,118350.0,118340.0,0.99342602]
[1755178167974,1.20226576,118350.0,118340.0,1.07789082]
[1755178168173,1.20226576,118350.0,118340.0,0.99342602]
[1755178168373,1.20146576,118350.0,118340.0,1.07789082]
[1755178168581,1.20346576,118350.0,118340.0,1.07789082]
[1755178168888,1.20346576,118350.0,118340.0,1.07745082]
[1755178170784,1.207626,118350.0,118340.0,1.07745082]
[1755178171681,1.207626,118350.0,118340.0,1.12737082]
[1755178173087,1.207626,118350.0,118340.0,1.07745082]
[1755178173682,1.207626,118350.0,118340.0,0.01274602]
[1755178174205,0.26355,118310.0,118300.0,1.03986]
[1755178174381,1.47231377,118310.0,118300.0,1.1243533]
[1755178174578,0.90746561,118310.0,118300.0,1.1243533]
[1755178174880,0.90746561,118310.0,118300.0,1.13425946]
[1755178174881,0.7706,118310.0,118300.0,1.13425946]
[1755178175089,0.7706,118310.0,118300.0,1.13905946]
[1755178175280,0.7216,118310.0,118300.0,1.63171762]
[1755178175479,0.3608,118320.0,118310.0,0.2534467]
[1755178175681,0.4098,118330.0,118320.0,0.1506691]
[1755178175882,0.4098,118330.0,118320.0,1.1293491]
[1755178176381,0.3608,118340.0,118330.0,0.1506619]
[1755178176684,0.4098,118340.0,118330.0,0.16056616]
[1755178176887,0.4098,118340.0,118330.0,0.1506619]
[1755178177090,0.049,118340.0,118330.0,0.1514619]
[1755178177383,0.98692296,118340.0,118330.0,0.1506619]
[1755178177588,1.20147296,118340.0,118330.0,0.1516619]
[1755178177779,1.20147296,118340.0,118330.0,0.0854719]
[1755178177975,1.11700816,118340.0,118330.0,0.0854719]
[1755178178178,1.11700816,118340.0,118330.0,0.1017419]
[1755178178385,1.11700816,118340.0,118330.0,0.1526619]
[1755178178885,0.049,118340.0,118330.0,0.1526619]
[1755178179578,0.4098,118350.0,118330.0,0.75286936]
[1755178179775,0.4098,118350.0,118340.0,1.1284148]
[1755178180081,0.049,118350.0,118340.0,1.1284148]
[1755178180281,0.049,118350.0,118340.0,1.1324148]
[1755178180485,0.4098,118360.0,118350.0,0.1546476]
[1755178180678,0.3608,118360.0,118350.0,0.64730576]
[1755178180882,0.4098,118380.0,118370.0,0.06619]
[1755178181080,0.55216,118380.0,118370.0,1.1270734]
[1755178181276,0.049,118380.0,118370.0,1.1270734]
[1755178181482,1.20144436,118380.0,118370.0,1.1270734]
[1755178181681,0.3479933,118370.0,118360.0,0.3367913]
[1755178181893,1.20145146,118370.0,118360.0,1.3141113]
[1755178182189,0.4942433,118370.0,118360.0,1.3303813]
[1755178182492,0.4098,118370.0,118360.0,1.3303813]
[1755178182688,0.4942433,118370.0,118360.0,1.3303813]
[1755178182990,1.20145146,118370.0,118360.0,1.0613704]
[1755178183188,1.20145146,118370.0,118360.0,0.97692]
[1755178183588,1.20145146,118370.0,118360.0,1.0613704]
[1755178184091,1.20145146,118370.0,118360.0,1.0633704]
[1755178184282,1.20145146,118370.0,118360.0,1.0643704]
[1755178184482,1.20145146,118370.0,118360.0,1.0623704]
[1755178184682,1.20145146,118370.0,118360.0,0.001]
[1755178184892,1.20225146,118370.0,118360.0,0.97736]
[1755178185188,0.3480147,118340.0,118330.0,0.0844715]
[1755178185377,0.3480147,118340.0,118320.0,1.4707075]
[1755178185378,0.3480218,118330.0,118320.0,1.269102]
[1755178185584,0.3480218,118330.0,118320.0,1.07061601]
[1755178185585,1.20147996,118330.0,118320.0,1.07061601]
[1755178185777,1.20147996,118330.0,118320.0,1.07062301]
[1755178186281,1.19323949,118330.0,118320.0,1.09633928]
[1755178186482,1.19403949,118330.0,118320.0,0.02571586]
[1755178187082,1.19503949,118330.0,118320.0,0.02771586]
[1755178187795,0.3480361,118310.0,118300.0,1.3136466]
[1755178187987,1.20149426,118310.0,118300.0,1.32355253]
[1755178188396,1.56229426,118310.0,118300.0,0.00990593]
[1755178188589,1.56309426,118310.0,118300.0,0.00990593]
[1755178188895,0.3480433,118300.0,118290.0,1.2289409]
[1755178189202,1.20150146,118300.0,118290.0,1.2289409]
[1755178189488,1.11700816,118300.0,118290.0,1.2289409]
[1755178189680,0.62435,118300.0,118290.0,1.2941309]
[1755178189988,1.11700816,118300.0,118290.0,1.2941309]
[1755178190196,1.20150146,118300.0,118290.0,1.2289409]
[1755178190389,0.3480504,118290.0,118280.0,0.97522]
[1755178190693,1.20150856,118290.0,118280.0,1.0597275]
[1755178191795,1.27020009,118290.0,118280.0,1.0597275]
[1755178192094,1.27020009,118290.0,118280.0,0.0866075]
[1755178192979,1.27120009,118290.0,118280.0,0.0876075]
[1755178193193,1.20250856,118290.0,118280.0,0.0876075]
[1755178194794,0.7098504,118290.0,118280.0,0.0989475]
[1755178194995,1.20250856,118290.0,118280.0,0.0989475]
[1755178195291,0.55316,118290.0,118280.0,0.1478675]
[1755178195484,1.13031856,118290.0,118280.0,0.1478675]
[1755178195685,1.20503856,118290.0,118280.0,0.1478675]
[1755178196490,1.12053816,118290.0,118280.0,0.1478675]
[1755178196698,0.4108,118290.0,118280.0,0.1478675]
[1755178196893,0.3618,118290.0,118280.0,0.1813875]
[1755178197189,0.3618,118290.0,118280.0,0.67404566]
[1755178197497,0.3618,118290.0,118280.0,0.1813875]
[1755178198295,0.001,118290.0,118280.0,1.20392566]
[1755178198885,0.3618,118290.0,118280.0,0.3496675]
[1755178199183,0.04649,118290.0,118280.0,0.1805875]
[1755178199588,0.001,118290.0,118280.0,0.5421875]
[1755178200091,0.001,118290.0,118280.0,1.04676249]
[1755178200394,0.08373,118300.0,118290.0,0.1772804]
[1755178200593,0.3608,118330.0,118320.0,0.133399]
[1755178200896,1.20570006,118330.0,118320.0,0.01271683]
[1755178201089,1.20570006,118330.0,118320.0,0.09719583]
[1755178201291,1.20570006,118330.0,118320.0,0.01271683]
[1755178201486,1.21058037,118330.0,118320.0,0.01271683]
[1755178201693,1.20570006,118330.0,118320.0,0.01271683]
[1755178202190,0.0844861,118310.0,118300.0,1.2261554]
[1755178202385,0.7130561,118310.0,118300.0,1.23894278]
[1755178202589,0.7130561,118310.0,118300.0,1.15444968]
[1755178202785,1.56651426,118310.0,118300.0,0.98546738]
[1755178202989,1.56651426,118310.0,118300.0,0.02599737]
[1755178203185,1.0738561,118310.0,118300.0,0.11049067]
[1755178203385,1.56731426,118310.0,118300.0,0.02599737]
[1755178203590,0.0845004,118290.0,118280.0,1.1424327]
[1755178203898,0.7130704,118290.0,118280.0,1.1674327]
[1755178204207,1.56652856,118290.0,118280.0,0.0846076]
[1755178204394,0.40629,118290.0,118280.0,0.1335276]
[1755178204584,0.55385,118310.0,118300.0,0.1594133]
[1755178204787,0.3608,118310.0,118300.0,1.63675146]
[1755178204994,0.40629,118310.0,118300.0,1.63775146]
[1755178205183,0.40629,118310.0,118300.0,1.1450933]
[1755178205384,0.6383362,118310.0,118300.0,1.1323733]
[1755178205585,0.40629,118310.0,118300.0,1.1323733]
[1755178205798,0.2534288,118330.0,118320.0,0.159399]
[1755178205799,0.55385,118330.0,118320.0,0.159399]
[1755178206100,0.3608,118330.0,118320.0,1.63641716]
[1755178206285,0.40629,118330.0,118320.0,1.143759]
[1755178206486,0.3608,118330.0,118320.0,1.143759]
[1755178206687,0.3608,118340.0,118330.0,0.1721119]
[1755178206889,0.4907406,118360.0,118340.0,0.3283035]
[1755178206890,0.40629,118350.0,118340.0,0.3283035]
[1755178207094,0.6383076,118350.0,118340.0,1.04628]
[1755178207289,0.04549,118340.0,118330.0,1.250733]
[1755178207484,0.62857,118350.0,118340.0,0.3283033]
[1755178207692,0.55385,118350.0,118340.0,0.3283033]
[1755178208201,1.59055658,118350.0,118340.0,0.002]
[1755178208399,1.56648576,118350.0,118340.0,0.002]
[1755178208891,1.56648576,118350.0,118340.0,0.0864654]
[1755178209092,1.0738283,118350.0,118340.0,1.0574254]
[1755178209296,1.0738283,118350.0,118340.0,0.97296]
[1755178209499,1.56648646,118350.0,118340.0,0.0874654]
[1755178209702,1.0738283,118350.0,118340.0,0.0864654]
[1755178209994,1.56648646,118350.0,118340.0,0.0864654]
[1755178210202,1.56648666,118350.0,118340.0,0.0854654]
[1755178210500,1.0738285,118350.0,118340.0,0.0854654]
[1755178210699,1.56648666,118350.0,118340.0,0.0854654]
[1755178211497,1.56648666,118350.0,118340.0,0.001]
[1755178211793,0.26777,118320.0,118310.0,0.1689655]
[1755178212097,0.04549,118320.0,118310.0,0.91823266]
[1755178212489,0.04549,118320.0,118310.0,0.91903266]
[1755178212993,0.04549,118320.0,118310.0,0.4128545]
[1755178213601,0.76042816,118320.0,118310.0,0.3639345]
[1755178213794,0.26777,118320.0,118310.0,0.4158545]
[1755178213990,0.001,118320.0,118310.0,0.91231266]
[1755178214186,0.001,118320.0,118310.0,0.92423266]
[1755178214391,0.04649,118320.0,118310.0,0.92423266]
[1755178214592,0.04649,118320.0,118310.0,0.4188545]
[1755178214793,0.19405,118320.0,118310.0,0.4158545]
[1755178215002,0.001,118320.0,118310.0,1.28403266]
[1755178215298,0.001,118320.0,118310.0,1.28483266]
[1755178215592,0.001,118320.0,118310.0,1.46642966]
[1755178215796,0.04549,118330.0,118320.0,0.1721199]
[1755178215995,0.04549,118330.0,118320.0,1.1411569]
[1755178216205,0.26777,118330.0,118320.0,1.1411569]
[1755178216393,0.26777,118330.0,118320.0,1.14626158]
[1755178216803,0.19305,118330.0,118320.0,1.14626158]
[1755178217201,0.62957,118330.0,118320.0,1.0942369]
[1755178217699,0.26877,118330.0,118320.0,1.1431569]
[1755178217903,0.62957,118330.0,118320.0,1.1431569]
[1755178218206,0.7140429,118330.0,118320.0,1.1431569]
[1755178218397,0.62957,118330.0,118320.0,1.1431569]
[1755178218599,0.19405,118330.0,118320.0,1.63581506]
[1755178218804,0.001,118330.0,118320.0,2.17915906]
[1755178219101,0.41994,118360.0,118340.0,0.3410328]
[1755178219303,0.7721615,118360.0,118350.0,1.1277787]
[1755178219495,0.68771,118360.0,118350.0,1.1403357]
[1755178219690,0.7721615,118360.0,118350.0,1.0914157]
[1755178219896,1.26481966,118360.0,118350.0,1.0654157]
[1755178220203,0.46543,118360.0,118350.0,1.1403302]
[1755178220402,0.05914,118360.0,118350.0,1.1530502]
[1755178220595,0.10463,118360.0,118350.0,1.1403302]
[1755178221105,0.10563,118360.0,118350.0,1.1433302]
[1755178221403,0.06014,118360.0,118350.0,1.81769236]
[1755178222294,0.06014,118360.0,118350.0,1.64870836]
[1755178222501,0.05914,118360.0,118350.0,1.1530502]
[1755178222697,0.06014,118360.0,118350.0,2.01150836]
[1755178222898,0.02142,118360.0,118350.0,2.18049236]
[1755178223504,0.06758,118370.0,118360.0,0.1119515]
[1755178223802,0.06758,118370.0,118360.0,1.14692916]
[1755178224106,0.04008,118370.0,118360.0,1.14692916]
[1755178224492,0.02854662,118370.0,118360.0,1.16387701]
[1755178224900,0.02854662,118370.0,118360.0,0.67121885]
[1755178225100,0.02854662,118370.0,118360.0,1.16387701]
[1755178225298,0.02854662,118370.0,118360.0,0.67121885]
[1755178225607,0.02854662,118370.0,118360.0,1.16387701]
[1755178225997,2e-08,118370.0,118360.0,1.16387701]
[1755178226191,2e-08,118370.0,118360.0,1.36387701]
[1755178226401,0.03493102,118380.0,118360.0,1.53777541]
[1755178226603,0.01174482,118380.0,118370.0,2.10614256]
[1755178226804,2e-08,118380.0,118370.0,2.11869406]
[1755178227112,2e-08,118380.0,118370.0,1.6260359]
[1755178227294,0.04632002,118380.0,118370.0,3.08509406]
[1755178227495,2e-08,118380.0,118370.0,2.7613879]
[1755178227705,2e-08,118380.0,118370.0,3.25404606]
[1755178227907,0.04732002,118380.0,118370.0,2.72929406]
[1755178228201,0.19173002,118380.0,118370.0,1.0558444]
[1755178228501,0.04732002,118380.0,118370.0,1.54850256]
[1755178228908,0.26127002,118380.0,118370.0,0.0934444]
[1755178229097,0.70730732,118380.0,118370.0,0.009]
[1755178229296,1.19996548,118380.0,118370.0,1.0592845]
[1755178229602,1.19996548,118380.0,118370.0,1.0572845]
[1755178229999,0.70730732,118380.0,118370.0,1.0572845]
[1755178230202,0.62207002,118380.0,118370.0,1.0572845]
[1755178230809,0.62107002,118380.0,118370.0,1.0542845]
[1755178231005,0.04632002,118380.0,118370.0,1.0542845]
[1755178231202,0.40712002,118380.0,118370.0,1.54694266]
[1755178231505,0.62107002,118380.0,118370.0,1.0542845]
[1755178231706,0.26027002,118380.0,118370.0,1.0542845]
[1755178231898,0.70550732,118380.0,118370.0,1.0542845]
[1755178232104,0.70550732,118380.0,118370.0,1.0512845]
[1755178232410,1.19816548,118380.0,118370.0,1.0512845]
[1755178232605,1.19896548,118380.0,118370.0,0.96584]
[1755178232907,1.19896548,118380.0,118360.0,0.18584625]
[1755178232908,0.3455144,118370.0,118360.0,0.01694785]
[1755178233105,0.0844516,118360.0,118350.0,1.0495363]
[1755178233316,1.19817976,118360.0,118350.0,1.0495387]
[1755178233903,0.7055216,118360.0,118350.0,1.0495387]
[1755178234113,1.19817976,118360.0,118350.0,1.0495387]
[1755178234313,1.20306295,118360.0,118350.0,1.0495387]
[1755178234500,1.20406295,118360.0,118350.0,1.0525387]
[1755178234702,0.62695319,118360.0,118350.0,1.0525387]
[1755178234903,1.11961135,118360.0,118350.0,1.0525387]
[1755178235104,0.62207,118360.0,118350.0,1.0525387]
[1755178235308,0.3618,118360.0,118350.0,1.76032686]
[1755178235603,0.001,118360.0,118350.0,1.76032686]